[Event "Early-Titled-Tuesday-Blitz-April-02-2024"]
[Site "Chess.com"]
[Date "2024.04.02"]
[Round "8"]
[White "Kazmin_Semyon"]
[Black "AA95"]
[Result "1-0"]
[WhiteElo "2610"]
[BlackElo "2498"]
[TimeControl "180+1"]
[EndTime "9:29:51 PDT"]
[Termination "Kazmin_Semyon won by checkmate"]

1. e4 {[%clk 0:03:00.9]} 1... e5 {[%clk 0:02:59.7]} 2. Nf3 {[%clk 0:03:00.6]}
2... Nf6 {[%clk 0:03:00.1]} 3. Nc3 {[%clk 0:02:58.9]} 3... Bb4 {[%clk
0:02:59.1]} 4. Bd3 {[%clk 0:02:56.4]} 4... O-O {[%clk 0:02:57]} 5. O-O {[%clk
0:02:47.9]} 5... Re8 {[%clk 0:02:55.4]} 6. Re1 {[%clk 0:02:43.6]} 6... c6 {[%clk
0:02:55.2]} 7. a3 {[%clk 0:02:34.2]} 7... Ba5 {[%clk 0:02:55.1]} 8. b4 {[%clk
0:02:31.7]} 8... Bc7 {[%clk 0:02:55.3]} 9. Bf1 {[%clk 0:02:26]} 9... d5 {[%clk
0:02:53.4]} 10. d3 {[%clk 0:02:26.7]} 10... Nbd7 {[%clk 0:02:52.9]} 11. Bg5
{[%clk 0:02:25]} 11... h6 {[%clk 0:02:52.9]} 12. Bh4 {[%clk 0:02:25.4]} 12... g5
{[%clk 0:02:48.6]} 13. Bg3 {[%clk 0:02:01.2]} 13... d4 {[%clk 0:02:40.5]} 14.
Ne2 {[%clk 0:02:00.1]} 14... Nf8 {[%clk 0:02:40.7]} 15. c3 {[%clk 0:01:58.7]}
15... dxc3 {[%clk 0:02:37.8]} 16. Nxc3 {[%clk 0:01:59.6]} 16... a5 {[%clk
0:02:38.3]} 17. b5 {[%clk 0:01:59.1]} 17... Ng6 {[%clk 0:02:38]} 18. d4 {[%clk
0:01:49.2]} 18... Bg4 {[%clk 0:02:23]} 19. h3 {[%clk 0:01:33.6]} 19... exd4
{[%clk 0:01:48.6]} 20. Bxc7 {[%clk 0:01:23]} 20... Qxc7 {[%clk 0:01:47.5]} 21.
Qxd4 {[%clk 0:01:23.7]} 21... Bxf3 {[%clk 0:01:18.9]} 22. Qxf6 {[%clk
0:01:22.1]} 22... Bh5 {[%clk 0:01:15.8]} 23. g4 {[%clk 0:01:14.3]} 23... Re6
{[%clk 0:01:15.2]} 24. Qf3 {[%clk 0:01:08.3]} 24... Nh4 {[%clk 0:01:14.2]} 25.
Qe3 {[%clk 0:00:22]} 25... Bg6 {[%clk 0:01:14.3]} 26. Bg2 {[%clk 0:00:21.8]}
26... Rae8 {[%clk 0:01:08.6]} 27. b6 {[%clk 0:00:18.3]} 27... Qf4 {[%clk
0:00:53.9]} 28. Qxf4 {[%clk 0:00:17.4]} 28... gxf4 {[%clk 0:00:53.9]} 29. f3
{[%clk 0:00:17.7]} 29... Rd8 {[%clk 0:00:47.1]} 30. Rad1 {[%clk 0:00:17.4]}
30... Red6 {[%clk 0:00:47.2]} 31. Rxd6 {[%clk 0:00:16.4]} 31... Rxd6 {[%clk
0:00:48.1]} 32. Rd1 {[%clk 0:00:16.9]} 32... Rxd1+ {[%clk 0:00:41.7]} 33. Nxd1
{[%clk 0:00:17.8]} 33... Kf8 {[%clk 0:00:19.2]} 34. Nb2 {[%clk 0:00:18.3]} 34...
Ke7 {[%clk 0:00:19.7]} 35. Kf2 {[%clk 0:00:18.2]} 35... Kd6 {[%clk 0:00:19.3]}
36. Bf1 {[%clk 0:00:18.4]} 36... Kc5 {[%clk 0:00:19.6]} 37. Na4+ {[%clk
0:00:19]} 37... Kd6 {[%clk 0:00:19.9]} 38. Bc4 {[%clk 0:00:15.7]} 38... f6
{[%clk 0:00:19.5]} 39. Bg8 {[%clk 0:00:10.8]} 39... Be8 {[%clk 0:00:18.9]} 40.
Nb2 {[%clk 0:00:09.8]} 40... Kc5 {[%clk 0:00:18.7]} 41. Nd3+ {[%clk 0:00:09.6]}
41... Kxb6 {[%clk 0:00:18.6]} 42. Nxf4 {[%clk 0:00:10.5]} 42... Kb5 {[%clk
0:00:18.3]} 43. Nh5 {[%clk 0:00:10.4]} 43... Bxh5 {[%clk 0:00:17.9]} 44. gxh5
{[%clk 0:00:11.3]} 44... Ka4 {[%clk 0:00:17.2]} 45. Kg3 {[%clk 0:00:11.6]} 45...
Nxf3 {[%clk 0:00:17.6]} 46. Kxf3 {[%clk 0:00:12.2]} 46... Kxa3 {[%clk
0:00:18.4]} 47. Kf4 {[%clk 0:00:12.7]} 47... b5 {[%clk 0:00:18.2]} 48. Kf5
{[%clk 0:00:12.6]} 48... b4 {[%clk 0:00:18.8]} 49. Kxf6 {[%clk 0:00:13.3]} 49...
b3 {[%clk 0:00:19.4]} 50. e5 {[%clk 0:00:14]} 50... b2 {[%clk 0:00:17.1]} 51.
Bh7 {[%clk 0:00:14.5]} 51... Kb3 {[%clk 0:00:15.6]} 52. e6 {[%clk 0:00:15.1]}
52... a4 {[%clk 0:00:16.5]} 53. e7 {[%clk 0:00:15.7]} 53... a3 {[%clk
0:00:17.4]} 54. e8=Q {[%clk 0:00:16.3]} 54... a2 {[%clk 0:00:18]} 55. Qe3+
{[%clk 0:00:12.5]} 55... Kb4 {[%clk 0:00:18.2]} 56. Qd4+ {[%clk 0:00:12.8]}
56... Kb3 {[%clk 0:00:17.6]} 57. Qd3+ {[%clk 0:00:13.2]} 57... Kb4 {[%clk
0:00:17.1]} 58. Qd4+ {[%clk 0:00:13.3]} 58... Kb3 {[%clk 0:00:17.6]} 59. Bg8+
{[%clk 0:00:14]} 59... Kc2 {[%clk 0:00:17.9]} 60. Qc4+ {[%clk 0:00:14.5]} 60...
Kd1 {[%clk 0:00:13.7]} 61. Qxa2 {[%clk 0:00:14.3]} 61... Kc1 {[%clk 0:00:14.1]}
62. Bh7 {[%clk 0:00:14.9]} 62... c5 {[%clk 0:00:11.8]} 63. Qb1+ {[%clk
0:00:15.1]} 63... Kd2 {[%clk 0:00:12.4]} 64. Qxb2+ {[%clk 0:00:16]} 64... Ke3
{[%clk 0:00:13]} 65. Qc3+ {[%clk 0:00:16.5]} 65... Kf4 {[%clk 0:00:13.4]} 66.
Qxc5 {[%clk 0:00:16.8]} 66... Kg3 {[%clk 0:00:13.7]} 67. Qe3+ {[%clk 0:00:17.2]}
67... Kh4 {[%clk 0:00:13.9]} 68. Qf2+ {[%clk 0:00:17.2]} 68... Kxh3 {[%clk
0:00:10.3]} 69. Bf5# {[%clk 0:00:17.6]} 1-0

[Event "Early-Titled-Tuesday-Blitz-April-02-2024"]
[Site "Chess.com"]
[Date "2024.04.02"]
[Round "8"]
[White "Anton_Demchenko"]
[Black "ValentinDragnev"]
[Result "1-0"]
[WhiteElo "2966"]
[BlackElo "2725"]
[TimeControl "180+1"]
[EndTime "9:29:52 PDT"]
[Termination "Anton_Demchenko won on time"]

1. e4 {[%clk 0:03:00.9]} 1... c6 {[%clk 0:02:57.9]} 2. d4 {[%clk 0:03:00.6]}
2... d5 {[%clk 0:02:57.5]} 3. e5 {[%clk 0:03:01.3]} 3... c5 {[%clk 0:02:50.9]}
4. Nf3 {[%clk 0:03:01.3]} 4... cxd4 {[%clk 0:02:46.8]} 5. Nxd4 {[%clk
0:03:02.2]} 5... Nc6 {[%clk 0:02:44.3]} 6. Nxc6 {[%clk 0:03:02.1]} 6... bxc6
{[%clk 0:02:45]} 7. Bd3 {[%clk 0:03:03]} 7... e6 {[%clk 0:02:42.4]} 8. Nd2
{[%clk 0:03:02.3]} 8... a5 {[%clk 0:02:42.5]} 9. Qe2 {[%clk 0:03:03]} 9... Ne7
{[%clk 0:02:32.9]} 10. Nf3 {[%clk 0:03:02.5]} 10... Nf5 {[%clk 0:01:48.7]} 11.
O-O {[%clk 0:02:55.4]} 11... Bc5 {[%clk 0:01:45.2]} 12. Kh1 {[%clk 0:02:43.2]}
12... O-O {[%clk 0:01:26]} 13. c3 {[%clk 0:02:38]} 13... f6 {[%clk 0:01:17.3]}
14. Bf4 {[%clk 0:02:27.8]} 14... Qe8 {[%clk 0:00:54.8]} 15. exf6 {[%clk
0:02:06.8]} 15... Rxf6 {[%clk 0:00:49.5]} 16. Ne5 {[%clk 0:02:05.2]} 16... Bb7
{[%clk 0:00:41.3]} 17. Rae1 {[%clk 0:02:02.8]} 17... Bd6 {[%clk 0:00:31.8]} 18.
Bg5 {[%clk 0:01:39.9]} 18... Rf8 {[%clk 0:00:31.8]} 19. Qg4 {[%clk 0:01:31.3]}
19... c5 {[%clk 0:00:25.1]} 20. Re2 {[%clk 0:01:19.9]} 20... a4 {[%clk
0:00:13.6]} 21. Rfe1 {[%clk 0:01:17.2]} 21... a3 {[%clk 0:00:14]} 22. b3 {[%clk
0:01:17.3]} 22... Qc8 {[%clk 0:00:06.9]} 23. Bc2 {[%clk 0:00:58.8]} 23... d4
{[%clk 0:00:06.7]} 24. c4 {[%clk 0:00:51.5]} 24... Ra6 {[%clk 0:00:05.8]} 25.
Nf3 {[%clk 0:00:32.7]} 25... Bb8 {[%clk 0:00:03.5]} 26. Be4 {[%clk 0:00:32]}
26... Bxe4 {[%clk 0:00:02.8]} 27. Rxe4 {[%clk 0:00:32.8]} 27... d3 {[%clk
0:00:03.1]} 28. Bd2 {[%clk 0:00:27.8]} 28... Qd7 {[%clk 0:00:02.8]} 29. Ne5
{[%clk 0:00:22]} 29... Bxe5 {[%clk 0:00:02.7]} 30. Rxe5 {[%clk 0:00:22.2]} 30...
Nd4 {[%clk 0:00:02.3]} 31. f3 {[%clk 0:00:10.8]} 31... Nc2 {[%clk 0:00:02.4]}
32. Rd1 {[%clk 0:00:03.7]} 32... Nb4 {[%clk 0:00:02.9]} 33. Bxb4 {[%clk
0:00:02.1]} 33... cxb4 {[%clk 0:00:03.8]} 34. Qe4 {[%clk 0:00:02.9]} 34... Rd8
{[%clk 0:00:04.1]} 35. Qe3 {[%clk 0:00:03.1]} 35... Rd6 {[%clk 0:00:04.4]} 36.
h3 {[%clk 0:00:03.4]} 36... Qc6 {[%clk 0:00:04.4]} 37. Re4 {[%clk 0:00:03.8]}
37... d2 {[%clk 0:00:04.8]} 38. Qe2 {[%clk 0:00:03.9]} 38... Qd7 {[%clk
0:00:04.3]} 39. Kg1 {[%clk 0:00:04.2]} 39... Qc6 {[%clk 0:00:04.4]} 40. Re3
{[%clk 0:00:04.3]} 40... Qc5 {[%clk 0:00:04.6]} 41. Kh1 {[%clk 0:00:04.3]} 41...
Qd4 {[%clk 0:00:05.1]} 42. Rxe6 {[%clk 0:00:03.2]} 42... Rxe6 {[%clk 0:00:04.5]}
43. Qxe6+ {[%clk 0:00:04.1]} 43... Kh8 {[%clk 0:00:05.4]} 44. Qe4 {[%clk
0:00:02]} 44... Qc3 {[%clk 0:00:04.9]} 45. Qh4 {[%clk 0:00:02.3]} 45... Rd7
{[%clk 0:00:04.1]} 46. Qg4 {[%clk 0:00:02.5]} 46... Qd3 {[%clk 0:00:04.1]} 47.
Qf4 {[%clk 0:00:02.3]} 47... h6 {[%clk 0:00:04.4]} 48. Qf8+ {[%clk 0:00:02.6]}
48... Kh7 {[%clk 0:00:04.6]} 49. Qe8 {[%clk 0:00:03.5]} 49... Rd8 {[%clk
0:00:04.3]} 50. Qe4+ {[%clk 0:00:04]} 50... Qxe4 {[%clk 0:00:04.7]} 51. fxe4
{[%clk 0:00:04.9]} 51... Kg6 {[%clk 0:00:05.6]} 52. Kg1 {[%clk 0:00:05.6]} 52...
Kg5 {[%clk 0:00:06.2]} 53. Kf2 {[%clk 0:00:06.3]} 53... Kf4 {[%clk 0:00:06.8]}
54. Ke2 {[%clk 0:00:07.1]} 54... Kg3 {[%clk 0:00:03.8]} 55. Rxd2 {[%clk
0:00:06.8]} 55... Re8 {[%clk 0:00:04.5]} 56. Ke3 {[%clk 0:00:07.1]} 56... g5
{[%clk 0:00:03.5]} 57. c5 {[%clk 0:00:05.5]} 57... h5 {[%clk 0:00:03.4]} 58. Rc2
{[%clk 0:00:05.8]} 1-0

[Event "Early-Titled-Tuesday-Blitz-April-02-2024"]
[Site "Chess.com"]
[Date "2024.04.02"]
[Round "8"]
[White "VeraVujovic"]
[Black "SlavenPastar"]
[Result "0-1"]
[WhiteElo "2245"]
[BlackElo "2552"]
[TimeControl "180+1"]
[EndTime "9:29:52 PDT"]
[Termination "SlavenPastar won by resignation"]

1. e4 {[%clk 0:03:00.9]} 1... e6 {[%clk 0:02:59.7]} 2. d4 {[%clk 0:02:56.9]}
2... d5 {[%clk 0:02:59.6]} 3. exd5 {[%clk 0:02:57.2]} 3... exd5 {[%clk
0:03:00.5]} 4. Nf3 {[%clk 0:02:57.2]} 4... Nf6 {[%clk 0:02:58]} 5. Bd3 {[%clk
0:02:56.5]} 5... Bd6 {[%clk 0:02:56.4]} 6. O-O {[%clk 0:02:55.4]} 6... O-O
{[%clk 0:02:56]} 7. Bg5 {[%clk 0:02:53.4]} 7... Bg4 {[%clk 0:02:54.3]} 8. Nbd2
{[%clk 0:02:47.9]} 8... Bh5 {[%clk 0:02:47.7]} 9. c3 {[%clk 0:02:20.8]} 9...
Nbd7 {[%clk 0:02:42.6]} 10. Qc2 {[%clk 0:02:15.9]} 10... Bg6 {[%clk 0:02:34]}
11. Rfe1 {[%clk 0:02:15.9]} 11... Re8 {[%clk 0:02:33.6]} 12. Rxe8+ {[%clk
0:02:12.6]} 12... Qxe8 {[%clk 0:02:34.5]} 13. Re1 {[%clk 0:02:12.7]} 13... Qf8
{[%clk 0:02:34.9]} 14. Ne5 {[%clk 0:02:06.8]} 14... Re8 {[%clk 0:02:24.6]} 15.
f4 {[%clk 0:01:54.7]} 15... c6 {[%clk 0:01:34.1]} 16. h3 {[%clk 0:01:19.4]}
16... Bxd3 {[%clk 0:01:31.7]} 17. Qxd3 {[%clk 0:01:12.5]} 17... h6 {[%clk
0:01:18.4]} 18. Bh4 {[%clk 0:01:07.3]} 18... Bc7 {[%clk 0:01:04.6]} 19. Ndf3
{[%clk 0:00:37.4]} 19... Qd6 {[%clk 0:01:00.5]} 20. Nxd7 {[%clk 0:00:24.8]}
20... Rxe1+ {[%clk 0:00:57.1]} 21. Bxe1 {[%clk 0:00:23.8]} 21... Qxd7 {[%clk
0:00:51.4]} 22. Ne5 {[%clk 0:00:23.3]} 22... Qe6 {[%clk 0:00:50.1]} 23. Qf3
{[%clk 0:00:19.9]} 23... Qf5 {[%clk 0:00:46.3]} 24. Qd3 {[%clk 0:00:17.8]} 24...
Qxf4 {[%clk 0:00:39.3]} 25. Bd2 {[%clk 0:00:13.5]} 25... Qe4 {[%clk 0:00:37.1]}
26. Qxe4 {[%clk 0:00:11.5]} 26... Nxe4 {[%clk 0:00:38]} 27. Bf4 {[%clk 0:00:12]}
27... g5 {[%clk 0:00:31.6]} 28. Bh2 {[%clk 0:00:11.8]} 28... Kg7 {[%clk
0:00:25.9]} 29. Kh1 {[%clk 0:00:09.8]} 29... Nf2+ {[%clk 0:00:12]} 30. Kg1
{[%clk 0:00:09.7]} 30... Nd1 {[%clk 0:00:12.6]} 31. Nd3 {[%clk 0:00:08.7]} 31...
Bxh2+ {[%clk 0:00:10.3]} 32. Kxh2 {[%clk 0:00:09.6]} 32... Ne3 {[%clk
0:00:06.1]} 33. g4 {[%clk 0:00:08.8]} 33... Nc4 {[%clk 0:00:05.5]} 34. b3 {[%clk
0:00:08.6]} 34... Nd6 {[%clk 0:00:05.6]} 35. Nc5 {[%clk 0:00:08.7]} 35... b6
{[%clk 0:00:05.4]} 36. Nd7 {[%clk 0:00:08]} 36... f6 {[%clk 0:00:04.6]} 37. Kg3
{[%clk 0:00:08]} 37... Kf7 {[%clk 0:00:05]} 38. Nb8 {[%clk 0:00:07.7]} 38...
Ne4+ {[%clk 0:00:04.6]} 39. Kf3 {[%clk 0:00:08.1]} 39... Nxc3 {[%clk 0:00:04.8]}
40. Nxc6 {[%clk 0:00:08.4]} 40... Nxa2 {[%clk 0:00:05]} 41. Nxa7 {[%clk
0:00:08.6]} 41... Nc1 {[%clk 0:00:05.5]} 42. b4 {[%clk 0:00:08.2]} 42... Nd3
{[%clk 0:00:05.5]} 43. b5 {[%clk 0:00:07.7]} 43... Nb2 {[%clk 0:00:05.1]} 44.
Nc8 {[%clk 0:00:07.2]} 44... Nc4 {[%clk 0:00:05.5]} 45. Ke2 {[%clk 0:00:07.6]}
45... Ke6 {[%clk 0:00:05.6]} 46. Na7 {[%clk 0:00:07.8]} 46... f5 {[%clk
0:00:04.9]} 47. Nc6 {[%clk 0:00:07.9]} 47... fxg4 {[%clk 0:00:04.5]} 48. hxg4
{[%clk 0:00:08.8]} 48... Kd6 {[%clk 0:00:04]} 49. Kd3 {[%clk 0:00:08.3]} 49...
Na3 {[%clk 0:00:04]} 50. Na7 {[%clk 0:00:08.5]} 50... Ke6 {[%clk 0:00:04.2]} 51.
Kc3 {[%clk 0:00:08.3]} 51... Nc4 {[%clk 0:00:04]} 52. Kd3 {[%clk 0:00:08.6]}
52... Kd6 {[%clk 0:00:03.2]} 53. Kc3 {[%clk 0:00:08.6]} 53... Ne3 {[%clk
0:00:03.3]} 54. Nc6 {[%clk 0:00:07.6]} 54... Nxg4 {[%clk 0:00:03.2]} 55. Nd8
{[%clk 0:00:07.9]} 55... Nf6 {[%clk 0:00:03.6]} 56. Nf7+ {[%clk 0:00:08.1]}
56... Ke7 {[%clk 0:00:03.4]} 57. Nxh6 {[%clk 0:00:08.8]} 57... Ne4+ {[%clk
0:00:04.3]} 58. Kd3 {[%clk 0:00:08.9]} 58... Nf6 {[%clk 0:00:04.6]} 59. Nf5+
{[%clk 0:00:09.2]} 59... Ke6 {[%clk 0:00:05.2]} 60. Ne3 {[%clk 0:00:09.5]} 60...
Kd6 {[%clk 0:00:05.1]} 61. Ng2 {[%clk 0:00:09.8]} 61... Ne4 {[%clk 0:00:05.2]}
62. Ne3 {[%clk 0:00:09.7]} 62... Ke6 {[%clk 0:00:05.5]} 63. Ng4 {[%clk
0:00:08.9]} 63... Nd6 {[%clk 0:00:05.9]} 64. Ne3 {[%clk 0:00:09.1]} 64... Nxb5
{[%clk 0:00:06.3]} 0-1

[Event "Early-Titled-Tuesday-Blitz-April-02-2024"]
[Site "Chess.com"]
[Date "2024.04.02"]
[Round "8"]
[White "wonderfultime"]
[Black "MetiForce"]
[Result "1-0"]
[WhiteElo "2990"]
[BlackElo "2893"]
[TimeControl "180+1"]
[EndTime "9:29:55 PDT"]
[Termination "wonderfultime won on time"]

1. d4 {[%clk 0:03:00.9]} 1... Nf6 {[%clk 0:03:00]} 2. Nf3 {[%clk 0:03:01.2]}
2... e6 {[%clk 0:02:57.4]} 3. c4 {[%clk 0:03:00.3]} 3... d5 {[%clk 0:02:56.6]}
4. Nc3 {[%clk 0:02:59.6]} 4... a6 {[%clk 0:02:56.8]} 5. c5 {[%clk 0:02:58.9]}
5... b6 {[%clk 0:02:56.9]} 6. cxb6 {[%clk 0:02:59.2]} 6... cxb6 {[%clk
0:02:57.8]} 7. Bf4 {[%clk 0:02:58.9]} 7... Bd6 {[%clk 0:02:58]} 8. Bg3 {[%clk
0:02:59.5]} 8... O-O {[%clk 0:02:57.8]} 9. e3 {[%clk 0:03:00]} 9... Bb7 {[%clk
0:02:56.5]} 10. Bd3 {[%clk 0:03:00.1]} 10... Nc6 {[%clk 0:02:55.1]} 11. Rc1
{[%clk 0:02:57.1]} 11... Rc8 {[%clk 0:02:55.1]} 12. Bh4 {[%clk 0:02:36.6]} 12...
Ne7 {[%clk 0:02:47.4]} 13. Bxf6 {[%clk 0:02:04.7]} 13... gxf6 {[%clk 0:02:48.3]}
14. O-O {[%clk 0:02:05.1]} 14... b5 {[%clk 0:02:46.7]} 15. Bb1 {[%clk
0:01:57.7]} 15... f5 {[%clk 0:02:41.2]} 16. Ne2 {[%clk 0:01:54.3]} 16... Ng6
{[%clk 0:02:40.9]} 17. g3 {[%clk 0:01:52.6]} 17... Qa5 {[%clk 0:02:35.8]} 18.
Rxc8 {[%clk 0:01:47.3]} 18... Rxc8 {[%clk 0:02:36.7]} 19. h4 {[%clk 0:01:47.9]}
19... Qb4 {[%clk 0:02:22.5]} 20. b3 {[%clk 0:01:45.8]} 20... a5 {[%clk
0:01:55.9]} 21. h5 {[%clk 0:01:36.7]} 21... Ne7 {[%clk 0:01:54.6]} 22. Kh1
{[%clk 0:01:33.9]} 22... h6 {[%clk 0:01:42.7]} 23. Nf4 {[%clk 0:01:22.6]} 23...
Kf8 {[%clk 0:01:35.2]} 24. Nd3 {[%clk 0:01:16.8]} 24... Qa3 {[%clk 0:01:29.5]}
25. Nfe5 {[%clk 0:01:16.9]} 25... Bc6 {[%clk 0:00:23.4]} 26. Kg2 {[%clk
0:01:07.1]} 26... b4 {[%clk 0:00:22.5]} 27. Qf3 {[%clk 0:00:53.4]} 27... Bb5
{[%clk 0:00:21.5]} 28. Rd1 {[%clk 0:00:53.2]} 28... a4 {[%clk 0:00:21.2]} 29.
Qf4 {[%clk 0:00:47.7]} 29... Kg7 {[%clk 0:00:11.9]} 30. g4 {[%clk 0:00:41.8]}
30... axb3 {[%clk 0:00:11.5]} 31. axb3 {[%clk 0:00:41.1]} 31... Qxb3 {[%clk
0:00:11.4]} 32. gxf5 {[%clk 0:00:34.1]} 32... Nxf5 {[%clk 0:00:09.1]} 33. Rg1
{[%clk 0:00:34.2]} 33... Bxd3 {[%clk 0:00:07.1]} 34. Bxd3 {[%clk 0:00:29.8]}
34... Qxd3 {[%clk 0:00:06.6]} 35. Qg4+ {[%clk 0:00:29.2]} 35... Kh7 {[%clk
0:00:04.9]} 36. Nxd3 {[%clk 0:00:29.5]} 36... Rg8 {[%clk 0:00:05.6]} 37. Qxg8+
{[%clk 0:00:28.2]} 37... Kxg8 {[%clk 0:00:06.5]} 38. Rb1 {[%clk 0:00:29]} 38...
Ng7 {[%clk 0:00:06.3]} 39. Rh1 {[%clk 0:00:17.2]} 39... Kh7 {[%clk 0:00:04.3]}
40. Kf3 {[%clk 0:00:17.4]} 40... Ne8 {[%clk 0:00:04.8]} 41. Ke2 {[%clk
0:00:16.8]} 41... Nf6 {[%clk 0:00:04.8]} 42. f3 {[%clk 0:00:13.1]} 42... Kg7
{[%clk 0:00:04.2]} 43. Kd2 {[%clk 0:00:13.3]} 43... Nh7 {[%clk 0:00:03.7]} 44.
Rg1+ {[%clk 0:00:12.6]} 44... Kf8 {[%clk 0:00:03.9]} 45. Kc2 {[%clk 0:00:12.9]}
45... Ng5 {[%clk 0:00:04.4]} 46. Rf1 {[%clk 0:00:13.3]} 46... Nh7 {[%clk
0:00:04.3]} 47. Kb3 {[%clk 0:00:13.4]} 47... Nf6 {[%clk 0:00:04.7]} 48. Rh1
{[%clk 0:00:14.1]} 48... Nh7 {[%clk 0:00:05.4]} 49. Nxb4 {[%clk 0:00:14.2]}
49... Bxb4 {[%clk 0:00:06]} 50. Kxb4 {[%clk 0:00:14.4]} 50... Ng5 {[%clk
0:00:06.8]} 51. Rf1 {[%clk 0:00:14.9]} 51... Ke7 {[%clk 0:00:07.2]} 52. Kc5
{[%clk 0:00:15.1]} 52... Nh7 {[%clk 0:00:06.6]} 53. Kc6 {[%clk 0:00:12.2]} 53...
Nf6 {[%clk 0:00:04.9]} 54. Rh1 {[%clk 0:00:12.5]} 54... Nh7 {[%clk 0:00:04.8]}
55. e4 {[%clk 0:00:12.8]} 55... Nf6 {[%clk 0:00:03.5]} 56. e5 {[%clk 0:00:11.5]}
56... Nd7 {[%clk 0:00:02.6]} 57. Rb1 {[%clk 0:00:10.5]} 57... Nf8 {[%clk
0:00:03]} 58. Rb7+ {[%clk 0:00:10.1]} 58... Ke8 {[%clk 0:00:03.6]} 59. Kd6
{[%clk 0:00:10.8]} 1-0

[Event "Early-Titled-Tuesday-Blitz-April-02-2024"]
[Site "Chess.com"]
[Date "2024.04.02"]
[Round "8"]
[White "JoshuaGK27"]
[Black "MIss_MIaMI"]
[Result "1-0"]
[WhiteElo "2524"]
[BlackElo "2365"]
[TimeControl "180+1"]
[EndTime "9:29:59 PDT"]
[Termination "JoshuaGK27 won by resignation"]

1. e4 {[%clk 0:03:00.9]} 1... c5 {[%clk 0:03:00.3]} 2. Nf3 {[%clk 0:03:00.1]}
2... e6 {[%clk 0:03:00.9]} 3. d4 {[%clk 0:03:00.4]} 3... cxd4 {[%clk 0:03:01.8]}
4. Nxd4 {[%clk 0:03:00.8]} 4... a6 {[%clk 0:03:02.5]} 5. Bd3 {[%clk 0:02:59.9]}
5... Ne7 {[%clk 0:03:01.9]} 6. O-O {[%clk 0:02:59.2]} 6... Nbc6 {[%clk
0:03:02.6]} 7. Nb3 {[%clk 0:02:51.6]} 7... d6 {[%clk 0:02:56.3]} 8. c4 {[%clk
0:02:50.2]} 8... Qc7 {[%clk 0:02:56.3]} 9. Nc3 {[%clk 0:02:50.3]} 9... Ng6
{[%clk 0:02:54.3]} 10. f4 {[%clk 0:02:44.9]} 10... Be7 {[%clk 0:02:53.6]} 11.
Be3 {[%clk 0:02:40.6]} 11... Nb4 {[%clk 0:02:42.8]} 12. Be2 {[%clk 0:02:36.6]}
12... Rb8 {[%clk 0:02:20.3]} 13. Rc1 {[%clk 0:02:33.7]} 13... O-O {[%clk
0:02:19.6]} 14. a3 {[%clk 0:02:32.8]} 14... Nc6 {[%clk 0:02:19.2]} 15. Qd2
{[%clk 0:02:24.5]} 15... Rd8 {[%clk 0:02:16.3]} 16. g3 {[%clk 0:02:09.4]} 16...
Na5 {[%clk 0:01:59.8]} 17. Nxa5 {[%clk 0:02:04.4]} 17... Qxa5 {[%clk 0:02:00.7]}
18. Nd5 {[%clk 0:01:48]} 18... Qxd2 {[%clk 0:01:59.7]} 19. Nxe7+ {[%clk
0:01:48.2]} 19... Nxe7 {[%clk 0:02:00.5]} 20. Bxd2 {[%clk 0:01:48.7]} 20... Bd7
{[%clk 0:01:55.3]} 21. Be3 {[%clk 0:01:39.8]} 21... Bc6 {[%clk 0:01:55.1]} 22.
Bf3 {[%clk 0:01:37.1]} 22... d5 {[%clk 0:01:44.9]} 23. cxd5 {[%clk 0:01:19.9]}
23... exd5 {[%clk 0:01:45.8]} 24. Bb6 {[%clk 0:01:19.9]} 24... Rd7 {[%clk
0:01:45.9]} 25. Rfd1 {[%clk 0:01:11.5]} 25... dxe4 {[%clk 0:01:34.3]} 26. Rxd7
{[%clk 0:01:10.9]} 26... Bxd7 {[%clk 0:01:35.2]} 27. Bxe4 {[%clk 0:01:10.9]}
27... Bc6 {[%clk 0:01:29.1]} 28. Bd3 {[%clk 0:01:01.8]} 28... Nd5 {[%clk
0:01:27.8]} 29. Bf2 {[%clk 0:00:59.7]} 29... Ba4 {[%clk 0:01:10.5]} 30. Be4
{[%clk 0:00:56.3]} 30... Nf6 {[%clk 0:01:08.3]} 31. Bf3 {[%clk 0:00:55]} 31...
h6 {[%clk 0:00:57.7]} 32. Rc7 {[%clk 0:00:51.3]} 32... b6 {[%clk 0:00:58.2]} 33.
Rb7 {[%clk 0:00:44.8]} 33... Rxb7 {[%clk 0:00:34.6]} 34. Bxb7 {[%clk 0:00:45.7]}
34... Nd7 {[%clk 0:00:35.1]} 35. Bxa6 {[%clk 0:00:42.3]} 35... b5 {[%clk
0:00:19.1]} 36. b3 {[%clk 0:00:33.4]} 36... Bxb3 {[%clk 0:00:18.6]} 37. Bxb5
{[%clk 0:00:33.9]} 37... Nf6 {[%clk 0:00:16.4]} 38. a4 {[%clk 0:00:31.7]} 38...
Bd5 {[%clk 0:00:14.8]} 39. a5 {[%clk 0:00:29.9]} 39... Ne4 {[%clk 0:00:15]} 40.
Bd4 {[%clk 0:00:28.8]} 40... Nd6 {[%clk 0:00:15.7]} 41. Bd3 {[%clk 0:00:22.5]}
41... Nc4 {[%clk 0:00:09]} 42. a6 {[%clk 0:00:20.6]} 42... Nd2 {[%clk
0:00:06.9]} 43. Kf2 {[%clk 0:00:12]} 43... Nb3 {[%clk 0:00:06.5]} 44. Be3 {[%clk
0:00:10.7]} 44... Na5 {[%clk 0:00:06.4]} 45. a7 {[%clk 0:00:07.1]} 45... Ba8
{[%clk 0:00:05.7]} 46. Bb5 {[%clk 0:00:05.1]} 46... Nb3 {[%clk 0:00:04.9]} 47.
Ke2 {[%clk 0:00:02.9]} 47... Kf8 {[%clk 0:00:05.5]} 48. Kd3 {[%clk 0:00:03]}
48... Ke7 {[%clk 0:00:06.1]} 49. Kc4 {[%clk 0:00:02.6]} 49... Na5+ {[%clk
0:00:06.7]} 50. Kb4 {[%clk 0:00:03.2]} 50... Nb7 {[%clk 0:00:06.5]} 51. Bb6
{[%clk 0:00:03.2]} 51... Kd6 {[%clk 0:00:06.1]} 52. Kc3 {[%clk 0:00:03.3]} 52...
g6 {[%clk 0:00:06.5]} 53. Kd4 {[%clk 0:00:03.5]} 53... h5 {[%clk 0:00:07.1]} 54.
Bc4 {[%clk 0:00:03.9]} 54... Kc6 {[%clk 0:00:06.1]} 55. Bxf7 {[%clk 0:00:03.4]}
55... Kxb6 {[%clk 0:00:06.2]} 56. Bxg6 {[%clk 0:00:03.9]} 56... h4 {[%clk
0:00:05]} 57. f5 {[%clk 0:00:02.6]} 57... hxg3 {[%clk 0:00:04.5]} 58. hxg3
{[%clk 0:00:03.5]} 58... Nd6 {[%clk 0:00:04.5]} 59. f6 {[%clk 0:00:03.9]} 59...
Kxa7 {[%clk 0:00:04.4]} 60. f7 {[%clk 0:00:04.3]} 60... Nxf7 {[%clk 0:00:04.9]}
61. Bxf7 {[%clk 0:00:05.2]} 61... Bf3 {[%clk 0:00:05.1]} 62. Ke5 {[%clk
0:00:05.2]} 62... Kb7 {[%clk 0:00:04.1]} 63. Bd5+ {[%clk 0:00:05.5]} 63... Bxd5
{[%clk 0:00:03.7]} 64. Kxd5 {[%clk 0:00:06.4]} 64... Kc7 {[%clk 0:00:04.6]} 65.
Ke6 {[%clk 0:00:06.9]} 65... Kd8 {[%clk 0:00:05.3]} 66. Kf7 {[%clk 0:00:07.4]}
66... Kd7 {[%clk 0:00:05.9]} 67. g4 {[%clk 0:00:08.3]} 67... Kd6 {[%clk
0:00:05.9]} 68. g5 {[%clk 0:00:09.2]} 68... Ke5 {[%clk 0:00:06.6]} 69. g6 {[%clk
0:00:10.1]} 69... Kf4 {[%clk 0:00:07.2]} 70. g7 {[%clk 0:00:11]} 70... Ke5
{[%clk 0:00:07.7]} 71. g8=Q {[%clk 0:00:11.9]} 71... Kf5 {[%clk 0:00:08.6]} 72.
Qg6+ {[%clk 0:00:12]} 72... Kf4 {[%clk 0:00:09.1]} 73. Qh5 {[%clk 0:00:12.2]}
73... Kg3 {[%clk 0:00:09.3]} 74. Qd5 {[%clk 0:00:11.7]} 74... Kf4 {[%clk
0:00:09.5]} 75. Kf6 {[%clk 0:00:11.9]} 75... Ke3 {[%clk 0:00:09.7]} 76. Qc4
{[%clk 0:00:12]} 1-0